fUSD/lending_fUSD_20240708
["ID","MTS","AMOUNT","RATE_DAILY","PERIOD"]
[331510998,1720444964678,-500.0,0.00053424,120]
[331510999,1720444964763,-594.57,0.00053424,120]
[331511000,1720444964846,-398.80313089,0.00053424,120]
[331511001,1720444964927,-500.0,0.00053424,120]
[331511002,1720444965013,-731.67,0.00053424,120]
[331511003,1720444965099,-500.0,0.00053424,120]
[331511004,1720444965184,-727.03,0.00053424,120]
[331511005,1720444965271,-500.0,0.00053424,120]
[331511006,1720444965361,-556.36,0.00053424,120]
[331511007,1720444965448,-678.58,0.00053424,120]
[331511008,1720444965536,-507.09,0.00053424,120]
[331511009,1720444965623,-828.76,0.00053424,120]
[331511010,1720444965709,-500.0,0.00053424,120]
[331511011,1720444965796,-564.32,0.00053424,120]
[331511012,1720444965882,-730.6,0.00053424,120]
[331511013,1720444965965,-500.0,0.00053424,120]
[331511014,1720444966051,-890.2,0.00053424,120]
[331511015,1720444966139,-795.04,0.00053424,120]
[331511016,1720444966227,-551.18,0.00053424,120]
[331511017,1720444966319,-500.0,0.00053424,120]
[331511018,1720444966408,-500.0,0.00053424,120]
[331511019,1720444966494,-788.58,0.00053424,120]
[331511020,1720444966585,-618.01,0.00053424,120]
[331511021,1720444966667,-500.0,0.00053424,120]
[331511022,1720444966747,-500.0,0.00053424,120]
[331511023,1720444966827,-500.0,0.00053424,120]
[331511024,1720444966906,-720.18,0.00053424,120]
[331511025,1720444966988,-209.77259435,0.00053424,120]
[331511026,1720444967070,-511.48,0.00053424,120]
[331511027,1720444967150,-500.0,0.00053424,120]
[331511028,1720444967232,-633.87,0.00053424,120]
[331511029,1720444967316,-885.43,0.00053424,120]
[331511030,1720444967399,-536.5,0.00053424,120]
[331511031,1720444967482,-739.48,0.00053424,120]
[331511032,1720444967563,-500.0,0.00053424,120]
[331511033,1720444967643,-556.22,0.00053424,120]
[331511034,1720444967721,-500.0,0.00053424,120]
[331511035,1720444967800,-658.89,0.00053424,120]
[331511036,1720444967879,-500.0,0.00053424,120]
[331511037,1720444967959,-1110.08,0.00053424,120]
[331511038,1720444968044,-735.58,0.00053424,120]
[331511039,1720444968139,-500.0,0.00053424,120]
[331511040,1720444968235,-508.6,0.00053424,120]
[331511041,1720444968321,-500.0,0.00053424,120]
[331511042,1720444968406,-761.41,0.00053424,120]
[331511043,1720444968492,-757.98,0.00053424,120]
[331511044,1720444968582,-500.0,0.00053424,120]
[331511045,1720444968667,-500.0,0.00053424,120]
[331511046,1720444968751,-744.56,0.00053424,120]
[331511047,1720444968830,-820.08,0.00053424,120]
[331511048,1720444968910,-571.86,0.00053424,120]
[331511049,1720444968993,-976.88,0.00053424,120]
[331511050,1720444969078,-795.49,0.00053424,120]
[331511051,1720444969163,-633.46,0.00053424,120]
[331511052,1720444969250,-1023.57,0.00053424,120]
[331511053,1720444969336,-500.0,0.00053424,120]
[331511054,1720444969416,-732.16,0.00053424,120]
[331511055,1720444969502,-372.40128582,0.00053424,120]
[331511056,1720444969590,-596.04,0.00053424,120]
[331511057,1720444969676,-584.19,0.00053424,120]
[331511058,1720444969758,-1250.0,0.00053424,120]
[331511059,1720444969839,-500.0,0.00053424,120]
[331511060,1720444969919,-396.51402978,0.00053424,120]
[331511061,1720444970002,-1319.76,0.00053424,120]
[331511062,1720444970083,-500.0,0.00053424,120]
[331511063,1720444970166,-777.23,0.00053424,120]
[331511064,1720444970247,-786.03,0.00053424,120]
[331511065,1720444970327,-488.80084019,0.00053424,120]
[331511066,1720444970410,-993.73,0.00053424,120]
[331511067,1720444970491,-857.25,0.00053424,120]
[331511068,1720444970577,-631.99,0.00053424,120]
[331511069,1720444970663,-534.07107391,0.00053424,120]
[331511070,1720444970929,-526.26,0.00053424,120]
[331511071,1720444971022,-500.0,0.00053424,120]
[331511072,1720444971107,-834.16,0.00053424,120]
[331511073,1720444971190,-710.28,0.00053424,120]
[331511074,1720444971271,-500.0,0.00053424,120]
[331511075,1720444971349,-500.0,0.00053424,120]
[331511076,1720444971430,-500.0,0.00053424,120]
[331511077,1720444971514,-907.14,0.00053424,120]
[331511078,1720444971595,-500.0,0.00053424,120]
[331511079,1720444971674,-500.0,0.00053424,120]
[331511080,1720444971751,-903.08,0.00053424,120]
[331511081,1720444971831,-1205.65,0.00053424,120]
[331511082,1720444971912,-500.0,0.00053424,120]
[331511083,1720444971994,-575.42,0.00053424,120]
[331511084,1720444972076,-524.88,0.00053424,120]
[331511085,1720444972156,-560.0,0.00053424,120]
[331511086,1720444972240,-1266.13,0.00053424,120]
[331511087,1720444972322,-1038.93,0.00053424,120]
[331511088,1720444972406,-860.22,0.00053424,120]
[331511089,1720444972489,-500.0,0.00053424,120]
[331511090,1720444972573,-617.44,0.00053424,120]
[331511091,1720444972657,-1023.2,0.00053424,120]
[331511092,1720444972738,-844.36,0.00053424,120]
[331511093,1720444972819,-981.65,0.00053424,120]
[331511094,1720444972902,-1228.92,0.00053424,120]
[331511095,1720444972989,-726.85,0.00053424,120]
[331511096,1720444973085,-500.0,0.00053424,120]
[331511097,1720444973187,-1221.82,0.00053424,120]
[331511098,1720444973288,-908.94,0.00053424,120]
[331511099,1720444973377,-597.71,0.00053424,120]
[331511100,1720444973469,-500.0,0.00053424,120]
[331511101,1720444973557,-694.82,0.00053424,120]
[331511102,1720444973646,-1246.01,0.00053424,120]
[331511103,1720444973732,-1155.33,0.00053424,120]
[331511104,1720444973820,-1101.3,0.00053424,120]
[331511105,1720444973907,-689.02,0.00053424,120]
[331511106,1720444973994,-500.0,0.00053424,120]
[331511107,1720444974080,-500.0,0.00053424,120]
[331511108,1720444974169,-889.1,0.00053424,120]
[331511109,1720444974260,-500.0,0.00053424,120]
[331511110,1720444974348,-656.56,0.00053424,120]
[331511111,1720444974438,-940.17,0.00053424,120]
[331511112,1720444974527,-1072.11,0.00053424,120]
[331511113,1720444974617,-500.0,0.00053424,120]
[331511114,1720444974705,-1299.84,0.00053424,120]
[331511115,1720444974792,-869.62,0.00053424,120]
[331511116,1720444974880,-500.0,0.00053424,120]
[331511117,1720444974967,-929.28,0.00053424,120]
[331511118,1720444975056,-905.16,0.00053424,120]
[331511119,1720444975143,-500.0,0.00053424,120]
[331511120,1720444975232,-500.84,0.00053424,120]
[331511121,1720444975322,-716.75,0.00053424,120]
[331511122,1720444975410,-753.1,0.00053424,120]
[331511123,1720444975502,-1023.46,0.00053424,120]
[331511124,1720444975598,-500.0,0.00053424,120]
[331511125,1720444975690,-810.25,0.00053424,120]
[331511126,1720444975779,-943.0,0.00053424,120]
[331511127,1720444975868,-629.86,0.00053424,120]
[331511128,1720444975958,-1153.51,0.00053424,120]
[331511129,1720444976052,-500.0,0.00053424,120]
[331511130,1720444976144,-742.91,0.00053424,120]
[331511131,1720444976237,-683.08,0.00053424,120]
[331511132,1720444976329,-869.05,0.00053424,120]
[331511133,1720444976418,-1252.26,0.00053424,120]
[331511134,1720444976505,-728.18,0.00053424,120]
[331511135,1720444976595,-1516.47,0.00053424,120]
[331511136,1720444976683,-964.36,0.00053424,120]
[331511137,1720444976767,-630.12557368,0.00053424,120]
[331511138,1720444976851,-1626.66,0.00053424,120]
[331511139,1720444976935,-500.0,0.00053424,120]
[331511140,1720444977029,-413.72,0.00053424,120]
[331511141,1720444977118,-2078.73,0.00053698,120]
[331511142,1720444977203,-754.88,0.00053698,120]
[331511143,1720444977286,-500.0,0.00053698,120]
[331511144,1720444977371,-1684.15,0.00053698,120]
[331511145,1720444977452,-500.0,0.00053698,120]
[331511146,1720444977534,-1733.81,0.00053698,120]
[331511147,1720444977619,-1653.08,0.00053698,120]
[331511148,1720444977703,-500.0,0.00053698,120]
[331511149,1720444977787,-684.17,0.00053698,120]
[331511150,1720444977870,-626.33,0.00053698,120]
[331511151,1720444977953,-1183.41,0.00053698,120]
[331511152,1720444978041,-697.42,0.00053698,120]
[331511153,1720444978141,-1492.66,0.00053698,120]
[331511154,1720444978238,-893.27,0.00053698,120]
[331511155,1720444978324,-687.27,0.00053698,120]
[331511156,1720444978408,-500.0,0.00053698,120]
[331511157,1720444978492,-500.0,0.00053698,120]
[331511158,1720444978581,-578.06,0.00053698,120]
[331511159,1720444978667,-500.0,0.00053698,120]
[331511160,1720444978750,-929.58,0.00053698,120]
[331511161,1720444978836,-628.14,0.00053698,120]
[331511162,1720444978919,-354.53860575,0.00053698,120]
[331511163,1720444979003,-575.43,0.00053698,120]
[331511164,1720444979090,-500.0,0.00053698,120]
[331511165,1720444979177,-606.58,0.00053698,120]
[331511166,1720444979262,-500.0,0.00053698,120]
[331511167,1720444979350,-500.0,0.00053698,120]
[331511168,1720444979433,-1428.1,0.00053698,120]
[331511169,1720444979517,-592.08,0.00053698,120]
[331511170,1720444979600,-599.01,0.00053698,120]
[331511171,1720444979683,-500.0,0.00053698,120]
[331511172,1720444979764,-500.0,0.00053698,120]
[331511173,1720444979849,-527.34,0.00053698,120]
[331511174,1720444980115,-500.0,0.00053698,120]
[331511175,1720444980206,-500.0,0.00053698,120]
[331511176,1720444980295,-2303.83,0.00053698,120]
[331511177,1720444980385,-1030.01,0.00053698,120]
[331511178,1720444980477,-500.0,0.00053698,120]
[331511179,1720444980566,-1129.3,0.00053698,120]
[331511180,1720444980654,-500.0,0.00053698,120]
[331511181,1720444980742,-500.0,0.00053698,120]
[331511182,1720444980827,-537.46,0.00053698,120]
[331511183,1720444980917,-779.78,0.00053698,120]
[331511184,1720444981007,-745.19,0.00053698,120]
[331511185,1720444981095,-731.02,0.00053698,120]
[331511186,1720444981187,-500.0,0.00053698,120]
[331511187,1720444981279,-500.0,0.00053698,120]
[331511188,1720444981366,-656.72,0.00053698,120]
[331511189,1720444981452,-500.0,0.00053698,120]
[331511190,1720444981536,-1102.07,0.00053698,120]
[331511191,1720444981624,-500.0,0.00053698,120]
[331511192,1720444981714,-167.92,0.00053698,120]
[331511193,1720444981796,-500.0,0.00053698,120]
[331511194,1720444981877,-500.0,0.00053698,120]
[331511195,1720444981961,-500.0,0.00053698,120]
[331511196,1720444982050,-804.05,0.00053698,120]
[331511197,1720444982135,-968.64,0.00053698,120]
[331511198,1720444982218,-1082.19,0.00053698,120]
[331511199,1720444982303,-1570.5,0.00053698,120]
[331511200,1720444982388,-1935.41,0.00053698,120]
[331511201,1720444982477,-5085.83,0.00053698,120]
[331511202,1720444982564,-771.26,0.00053698,120]
[331511203,1720444982654,-813.82,0.00053698,120]
[331511204,1720444982740,-1256.69,0.00053698,120]
[331511205,1720444982825,-530.51,0.00053698,120]
[331511206,1720444982906,-500.0,0.00053698,120]
[331511207,1720444982990,-500.0,0.00053698,120]
[331511208,1720444983083,-915.13,0.00053698,120]
[331511209,1720444983183,-511.24,0.00053698,120]
[331511210,1720444983284,-2062.26,0.00053698,120]
[331511211,1720444983374,-2547.29,0.00053698,120]
[331511212,1720444983463,-722.73,0.00053698,120]
[331511213,1720444983557,-1773.39,0.00053698,120]
[331511214,1720444983648,-962.79,0.00053698,120]
[331511215,1720444983741,-1826.77,0.00053698,120]
[331511216,1720444983833,-556.29832445,0.00053698,120]
[331511217,1720444983922,-1768.04,0.00053698,120]
[331511218,1720444984015,-1447.56,0.00053698,120]
[331511219,1720444984117,-1801.6,0.00053698,120]
[331511220,1720444984210,-2861.76,0.00053698,120]
[331511221,1720444984301,-1122.87,0.00053698,120]
[331511222,1720444984388,-526.91,0.00053698,120]
[331511223,1720444984476,-221.52632343,0.00053698,120]
[331511224,1720444984567,-500.0,0.00053698,120]
[331511225,1720444984657,-686.39,0.00053698,120]
[331511226,1720444984744,-1136.27,0.00053698,120]
[331511227,1720444984828,-3164.35,0.00053698,120]
[331511228,1720444984912,-505.54,0.00053698,120]
[331511229,1720444984998,-1162.49,0.00053698,120]
[331511230,1720444985084,-1906.95,0.00053698,120]
[331511231,1720444985166,-1298.4,0.00053698,120]
[331511232,1720444985251,-1181.68,0.00053698,120]
[331511233,1720444985334,-2349.1,0.00053698,120]
[331511234,1720444985420,-811.45,0.00053698,120]
[331511235,1720444985511,-759.35,0.00053698,120]
[331511236,1720444985601,-2038.75,0.00053698,120]
[331511237,1720444985696,-1664.25,0.00053698,120]
[331511238,1720444985792,-858.68,0.00053698,120]
[331511239,1720444985883,-1349.79,0.00053698,120]
[331511240,1720444985972,-502.55,0.00053698,120]
[331511241,1720444986066,-3020.56,0.00053698,120]
[331511242,1720444986156,-480.76814859,0.00053698,120]
[331511243,1720444986244,-1293.82,0.00053698,120]
[331511244,1720444986338,-1674.53,0.00053698,120]
[331511245,1720444986432,-1078.52,0.00053698,120]
[331511246,1720444986522,-625.62,0.00053698,120]
[331511247,1720444986616,-834.62,0.00053698,120]
[331511248,1720444986703,-500.0,0.00053698,120]
[331511249,1720444986786,-1390.62,0.00053698,120]
[331511250,1720444986868,-1406.2,0.00053698,120]
[331511251,1720444986951,-669.87,0.00053698,120]
[331511252,1720444987035,-500.0,0.00053698,120]
[331511253,1720444987119,-500.0,0.00053698,120]
[331511254,1720444987205,-728.82,0.00053698,120]
[331511255,1720444987291,-2399.28,0.00053698,120]
[331511256,1720444987380,-1434.06,0.00053698,120]
[331511257,1720444987463,-500.0,0.00053698,120]
[331511258,1720444987545,-510.34,0.00053698,120]
[331511259,1720444987631,-2007.19,0.00053698,120]
[331511260,1720444987715,-1253.66,0.00053698,120]
[331511261,1720444987803,-1628.65,0.00053698,120]
[331511262,1720444987888,-1435.39,0.00053698,120]
[331511263,1720444987976,-2683.83,0.00053698,120]
[331511264,1720444988068,-209.82847716,0.00053698,120]
[331511265,1720444988168,-1226.3,0.00053698,120]
[331511266,1720444988269,-856.13,0.00053698,120]
[331511267,1720444988363,-1397.31,0.00053698,120]
[331511268,1720444988449,-602.51,0.00053698,120]
[331511269,1720444988537,-667.55,0.00053698,120]
[331511270,1720444988622,-500.0,0.00053698,120]
[331511271,1720444988707,-1620.69,0.00053698,120]
[331511272,1720444988793,-812.96,0.00053698,120]
[331511273,1720444988880,-2144.73,0.00053698,120]
[331511274,1720444988969,-3560.63,0.00053698,120]
[331511275,1720444989063,-1545.37,0.00053698,120]
[331511276,1720444989157,-505.85,0.00053698,120]
[331511277,1720444989438,-801.42,0.00053698,120]
[331511278,1720444989544,-3858.43,0.00053698,120]
[331511279,1720444989643,-4446.26,0.00053698,120]
[331511280,1720444989737,-500.0,0.00053698,120]
[331511281,1720444989830,-737.86,0.00053698,120]
[331511282,1720444989924,-564.21,0.00053698,120]
[331511283,1720444990017,-988.15,0.00053698,120]
[331511284,1720444990109,-6909.46,0.00053698,120]
[331511285,1720444990202,-6124.77,0.00053698,120]
[331511286,1720444990291,-7434.29,0.00053698,120]
[331511287,1720444990380,-1564.94,0.00053698,120]
[331511288,1720444990470,-3097.92,0.00053698,120]
[331511289,1720444990558,-4977.25,0.00053698,120]
[331511290,1720444990646,-2569.11,0.00053698,120]
[331511291,1720444990732,-817.49,0.00053698,120]
[331511292,1720444990821,-6557.78,0.00053698,120]
[331511293,1720444990909,-8047.98,0.00053698,120]
[331511294,1720444990999,-4890.76,0.00053698,120]
[331511295,1720444991092,-926.07,0.00053698,120]
[331511296,1720444991183,-634.86,0.00053698,120]
[331511297,1720444991276,-5071.97,0.00053698,120]
[331511298,1720444991369,-5197.47,0.00053698,120]
[331511299,1720444991453,-12824.58,0.00053698,120]
[331511300,1720444991539,-500.0,0.00053698,120]
[331511301,1720444991620,-737.63,0.00053698,120]
[331511302,1720444991702,-979.51,0.00053698,120]
[331511303,1720444991784,-5000.69,0.00053698,120]
[331511304,1720444991868,-1089.79,0.00053698,120]
[331511305,1720444991955,-500.0,0.00053698,120]
[331511306,1720444992044,-602.11,0.00053698,120]
[331511307,1720444992128,-3962.26,0.00053698,120]
[331511308,1720444992211,-816.01,0.00053698,120]
[331511309,1720444992291,-5967.11,0.00053698,120]
[331511310,1720444992375,-952.17,0.00053698,120]
[331511311,1720444992460,-3856.8,0.00053698,120]
[331511312,1720444992542,-1444.4,0.00053698,120]
[331511313,1720444992628,-4328.98,0.00053698,120]
[331511314,1720444992710,-1667.53,0.00053698,120]
[331511315,1720444992794,-602.68,0.00053698,120]
[331511316,1720444992877,-4918.52,0.00053698,120]
[331511317,1720444992961,-1665.81,0.00053698,120]
[331511318,1720444993046,-1892.85,0.00053698,120]
[331511319,1720444993144,-1343.01,0.00053698,120]
[331511320,1720444993241,-500.0,0.00053698,120]
[331511321,1720444993327,-3737.99,0.00053698,120]
[331511322,1720444993410,-2033.08,0.00053698,120]
[331511323,1720444993497,-681.78,0.00053698,120]
[331511324,1720444993584,-2432.96,0.00053698,120]
[331511325,1720444993674,-8334.2,0.00053698,120]
[331511326,1720444993760,-2303.71,0.00053698,120]
[331511327,1720444993849,-500.0,0.00053698,120]
[331511328,1720444993937,-7113.69,0.00053698,120]
[331511329,1720444994025,-2372.86,0.00053698,120]
[331511330,1720444994116,-6365.6,0.00053698,120]
[331511331,1720444994204,-3895.56,0.00053698,120]
[331511332,1720444994297,-4028.67,0.00053698,120]
[331511333,1720444994388,-500.0,0.00053698,120]
[331511334,1720444994483,-2932.06,0.00053698,120]
[331511335,1720444994580,-9769.22,0.00053698,120]
[331511336,1720444994674,-3721.64,0.00053698,120]
[331511337,1720444994767,-4737.12,0.00053698,120]
[331511338,1720444994857,-579.46,0.00053698,120]
[331511339,1720444994946,-1491.25,0.00053698,120]
[331511340,1720444995038,-1519.45,0.00053698,120]
[331511341,1720444995126,-9789.62,0.00053698,120]
[331511342,1720444995217,-18403.09,0.00053698,120]
[331511343,1720444995311,-5134.91,0.00053698,120]
[331511344,1720444995401,-500.0,0.00053698,120]
[331511345,1720444995491,-506.61,0.00053698,120]
[331511346,1720444995582,-2497.28,0.00053698,120]
[331511347,1720444995675,-552.8,0.00053698,120]
[331511348,1720444995766,-1667.87,0.00053698,120]
[331511349,1720444995853,-1198.7,0.00053698,120]
[331511350,1720444995944,-14120.27,0.00053698,120]
[331511351,1720444996034,-8496.48,0.00053698,120]
[331511352,1720444996125,-5150.8,0.00053698,120]
[331511353,1720444996218,-666.9,0.00053698,120]
[331511354,1720444996315,-77163.49,0.00053698,120]
[331511355,1720444996409,-500.0,0.00053698,120]
[331511356,1720444996506,-1701.37,0.00053698,120]
[331511357,1720444996597,-1695.49,0.00053698,120]
[331511358,1720444996679,-3671.69,0.00053698,120]
[331511359,1720444996762,-43789.77,0.00053698,120]
[331511360,1720444996842,-744.56,0.00053698,120]
[331511361,1720444996923,-5882.08,0.00053698,120]
[331511362,1720444997006,-4253.18,0.00053698,120]
[331511363,1720444997088,-2648.44,0.00053698,120]
[331511364,1720444997169,-2191.17,0.00053698,120]
[331511365,1720444997249,-4023.3,0.00053698,120]
[331511366,1720444997328,-500.0,0.00053698,120]
[331511367,1720444997408,-1885.58,0.00053698,120]
[331511368,1720444997488,-500.0,0.00053698,120]
[331511369,1720444997574,-20208.54,0.00053698,120]
[331511370,1720444997654,-5732.02,0.00053698,120]
[331511371,1720444997735,-3467.68,0.00053698,120]
[331511372,1720444997819,-3285.94,0.00053698,120]
[331511373,1720444997904,-843.34,0.00053698,120]
[331511374,1720444997990,-500.0,0.00053698,120]
[331511375,1720444998083,-4518.2,0.00053698,120]
[331511376,1720444998177,-579.73,0.00053698,120]
[331511377,1720444998268,-7921.19,0.00053698,120]
[331511378,1720444998352,-2995.09,0.00053698,120]
[331511379,1720444998437,-521.56,0.00053698,120]
[331511380,1720444998524,-4816.6,0.00053698,120]
[331511381,1720444998787,-500.0,0.00053698,120]
[331511382,1720444998879,-5616.29,0.00053698,120]
[331511383,1720444998969,-4754.74,0.00053698,120]
[331511384,1720444999052,-500.0,0.00053698,120]
[331511385,1720444999140,-2818.99,0.00053698,120]
[331511386,1720444999229,-3610.51,0.00053698,120]
[331511387,1720444999317,-2101.17,0.00053698,120]
[331511388,1720444999402,-7384.37,0.00053698,120]
[331511389,1720444999483,-13611.45,0.00053698,120]
[331511390,1720444999563,-500.0,0.00053698,120]
[331511391,1720444999645,-965.22,0.00053698,120]
[331511392,1720444999727,-547.56,0.00053698,120]
[331511393,1720444999807,-500.0,0.00053698,120]
[331511394,1720444999885,-583.78,0.00053698,120]
[331511395,1720444999968,-3854.26,0.00053698,120]
[331511396,1720445000049,-10162.8,0.00053698,120]
[331511397,1720445000130,-500.0,0.00053698,120]
[331511398,1720445000206,-938.43,0.00053698,120]
[331511399,1720445000286,-1124.37,0.00053698,120]
[331511400,1720445000370,-4983.01,0.00053698,120]
[331511401,1720445000452,-5118.07,0.00053698,120]
[331511402,1720445000539,-2432.5,0.00053698,120]
[331511403,1720445000629,-5565.77,0.00053698,120]
[331511404,1720445000716,-2686.57,0.00053698,120]
[331511405,1720445000797,-524.96,0.00053698,120]
[331511406,1720445000886,-500.0,0.00053698,120]
[331511407,1720445000972,-1454.12,0.00053698,120]
[331511408,1720445001060,-5036.27,0.00053698,120]
[331511409,1720445001144,-1067.33,0.00053698,120]
[331511410,1720445001221,-2304.81,0.00053698,120]
[331511411,1720445001298,-1767.38,0.00053698,120]
[331511412,1720445001371,-500.0,0.00053698,120]
[331511413,1720445001453,-5646.1,0.00053698,120]
[331511414,1720445001532,-4701.07,0.00053698,120]
[331511415,1720445001610,-4919.53,0.00053698,120]
[331511416,1720445001688,-9047.3,0.00053698,120]
[331511417,1720445001765,-500.0,0.00053698,120]
[331511418,1720445001841,-1659.74,0.00053698,120]
[331511419,1720445001918,-1525.81,0.00053698,120]
[331511420,1720445001998,-2133.05,0.00053698,120]
[331511421,1720445002078,-7680.57,0.00053698,120]
[331511422,1720445002157,-3352.13,0.00053698,120]
[331511423,1720445002236,-4421.49,0.00053698,120]
[331511424,1720445002313,-1759.96,0.00053698,120]
[331511425,1720445002390,-3903.92,0.00053698,120]
[331511426,1720445002467,-500.0,0.00053698,120]
[331511427,1720445002544,-1631.9,0.00053698,120]
[331511428,1720445002626,-3833.49,0.00053698,120]
[331511429,1720445002707,-5951.51,0.00053698,120]
[331511430,1720445002792,-5146.59,0.00053698,120]
[331511431,1720445002873,-2176.54,0.00053698,120]
[331511432,1720445002957,-6347.68,0.00053698,120]
[331511433,1720445003042,-1088.69,0.00053698,120]
[331511434,1720445003139,-500.0,0.00053698,120]
[331511435,1720445003238,-23579.31,0.00053698,120]
[331511436,1720445003327,-500.0,0.00053698,120]
[331511437,1720445003414,-3966.4,0.00053698,120]
[331511438,1720445003506,-2068.28,0.00053698,120]
[331511439,1720445003595,-2578.3,0.00053698,120]
[331511440,1720445003682,-3921.63,0.00053698,120]
[331511441,1720445003769,-58243.57,0.00053698,120]
[331511442,1720445003857,-508.44,0.00053698,120]
[331511443,1720445003941,-627.12,0.00053698,120]
[331511444,1720445004030,-24232.54,0.00053698,120]
[331511445,1720445004120,-500.0,0.00053698,120]
[331511446,1720445004207,-552.36,0.00053698,120]
[331511447,1720445004298,-5320.57,0.00053698,120]
[331511448,1720445004388,-6752.46,0.00053698,120]
[331511449,1720445004474,-623.17,0.00053698,120]
[331511450,1720445004566,-500.0,0.00053698,120]
[331511451,1720445004658,-695.92,0.00053698,120]
[331511452,1720445004746,-2080.87,0.00053698,120]
[331511453,1720445004837,-6849.11,0.00053698,120]
[331511454,1720445004927,-1687.12,0.00053698,120]
[331511455,1720445005019,-1101.67,0.00053698,120]
[331511456,1720445005111,-741.08,0.00053698,120]
[331511457,1720445005200,-500.0,0.00053698,120]
[331511458,1720445005289,-6100.12,0.00053698,120]
[331511459,1720445005377,-1353.36,0.00053698,120]
[331511460,1720445005466,-500.0,0.00053698,120]
[331511461,1720445005556,-6271.45,0.00053698,120]
[331511462,1720445005644,-2621.09,0.00053698,120]
[331511463,1720445005730,-2109.31,0.00053698,120]
[331511464,1720445005816,-12321.64,0.00053698,120]
[331511465,1720445005903,-538.98,0.00053698,120]
[331511466,1720445005989,-5668.6,0.00053698,120]
[331511467,1720445006078,-6141.18,0.00053698,120]
[331511468,1720445006166,-500.0,0.00053698,120]
[331511469,1720445006256,-1783.66,0.00053698,120]
[331511470,1720445006347,-768.98,0.00053698,120]
[331511471,1720445006437,-639.8,0.00053698,120]
[331511472,1720445006536,-1148.58,0.00053698,120]
[331511473,1720445006623,-1046.64,0.00053698,120]
[331511474,1720445006707,-500.0,0.00053698,120]
[331511475,1720445006791,-211.54,0.00053698,120]
[331511476,1720445006879,-2383.64,0.00053698,120]
[331511477,1720445006965,-1380.83,0.00053698,120]
[331511478,1720445007049,-2726.39,0.00053698,120]
[331511479,1720445007131,-1348.55,0.00053698,120]
[331511480,1720445007213,-646.48,0.00053698,120]
[331511481,1720445007297,-5858.28,0.00053698,120]
[331511482,1720445007384,-3087.04,0.00053698,120]
[331511483,1720445007499,-500.0,0.00053698,120]
[331511484,1720445007581,-768.16,0.00053698,120]
[331511485,1720445007870,-1098.42,0.00053698,120]
[331511486,1720445007956,-1151.32,0.00053698,120]
[331511487,1720445008039,-28264.79,0.00053698,120]
[331511488,1720445008164,-500.0,0.00053698,120]
[331511489,1720445008260,-1188.45,0.00053698,120]
[331511490,1720445008381,-3804.3,0.00053698,120]
[331511491,1720445008468,-500.0,0.00053698,120]
[331511492,1720445008591,-634.13,0.00053698,120]
[331511493,1720445008695,-1074.63,0.00053698,120]
[331511494,1720445008817,-972.69,0.00053698,120]
[331511495,1720445008938,-5641.11,0.00053698,120]
[331511496,1720445009025,-1971.31,0.00053698,120]
[331511497,1720445009116,-500.0,0.00053698,120]